[Event "*** Titled Tuesday 3|2 Blitz"]
[Site "Chess.com"]
[Date "2015.06.02"]
[Round "8"]
[White "RitvarsReimanis"]
[Black "Gevorg_Harutjunyan"]
[Result "1-0"]
[WhiteElo "2379"]
[BlackElo "2523"]
[TimeControl "180+2"]
[EndTime "12:42:08 PDT"]
[Termination "RitvarsReimanis won by resignation"]

1. d4 {[%clk 0:03:00.1]} 1... Nf6 {[%clk 0:03:00.8]} 2. Bg5 {[%clk 0:02:59.6]}
2... e6 {[%clk 0:03:00.7]} 3. e3 {[%clk 0:02:59.9]} 3... b6 {[%clk 0:02:59.9]}
4. Be2 {[%clk 0:02:59.5]} 4... Bb7 {[%clk 0:03:00.9]} 5. Bf3 {[%clk 0:03:00.9]}
5... d5 {[%clk 0:03:02.3]} 6. Ne2 {[%clk 0:03:01]} 6... Nbd7 {[%clk 0:03:03.6]}
7. O-O {[%clk 0:03:01.6]} 7... h6 {[%clk 0:03:04.9]} 8. Bxf6 {[%clk 0:02:59.5]}
8... Nxf6 {[%clk 0:03:05.4]} 9. c4 {[%clk 0:03:00.7]} 9... Bd6 {[%clk
0:03:06.5]} 10. Qa4+ {[%clk 0:03:00.4]} 10... c6 {[%clk 0:03:05.1]} 11. cxd5
{[%clk 0:02:54.4]} 11... exd5 {[%clk 0:03:07]} 12. Ng3 {[%clk 0:02:51.7]} 12...
O-O {[%clk 0:03:06.5]} 13. Nc3 {[%clk 0:02:52.9]} 13... Re8 {[%clk 0:03:07.2]}
14. Rac1 {[%clk 0:02:48.2]} 14... a5 {[%clk 0:03:05.1]} 15. Qd1 {[%clk
0:02:47.8]} 15... b5 {[%clk 0:02:52.1]} 16. Re1 {[%clk 0:02:47.6]} 16... a4
{[%clk 0:02:50.1]} 17. a3 {[%clk 0:02:48.1]} 17... Qa5 {[%clk 0:02:46.5]} 18.
Na2 {[%clk 0:02:43.6]} 18... b4 {[%clk 0:02:45]} 19. axb4 {[%clk 0:02:35.3]}
19... Bxb4 {[%clk 0:02:46.9]} 20. Nxb4 {[%clk 0:02:35.3]} 20... Qxb4 {[%clk
0:02:48.8]} 21. Rc2 {[%clk 0:02:33.6]} 21... Re6 {[%clk 0:02:42.7]} 22. Qd2
{[%clk 0:02:33.9]} 22... Qb6 {[%clk 0:02:38.6]} 23. Ra1 {[%clk 0:02:32.8]} 23...
Ra5 {[%clk 0:02:34.6]} 24. h3 {[%clk 0:02:24.8]} 24... g6 {[%clk 0:02:34.2]} 25.
Qc1 {[%clk 0:02:22.1]} 25... h5 {[%clk 0:02:33.1]} 26. Ne2 {[%clk 0:02:22.4]}
26... Ba6 {[%clk 0:02:27.8]} 27. Nf4 {[%clk 0:02:12.5]} 27... Rd6 {[%clk
0:02:28.5]} 28. Rc5 {[%clk 0:02:03.6]} 28... g5 {[%clk 0:02:19.7]} 29. Qc3
{[%clk 0:01:48.8]} 29... Rb5 {[%clk 0:02:05]} 30. Rxb5 {[%clk 0:01:45.1]} 30...
cxb5 {[%clk 0:01:56.7]} 31. Nxh5 {[%clk 0:01:34.7]} 31... Nxh5 {[%clk
0:01:44.6]} 32. Bxh5 {[%clk 0:01:36.6]} 32... b4 {[%clk 0:01:38.2]} 33. Qc5
{[%clk 0:01:28.4]} 33... Bb5 {[%clk 0:01:35.5]} 34. Qxb4 {[%clk 0:01:25.6]}
34... Rf6 {[%clk 0:01:28.2]} 35. Bf3 {[%clk 0:01:14.1]} 35... Qc6 {[%clk
0:01:18.9]} 36. Qc5 {[%clk 0:01:09.2]} 36... Qxc5 {[%clk 0:01:10.8]} 37. dxc5
{[%clk 0:01:11.1]} 37... Bc6 {[%clk 0:01:10.2]} 38. Bd1 {[%clk 0:01:02.6]} 38...
Bb7 {[%clk 0:00:44.2]} 39. Rxa4 {[%clk 0:00:56.6]} 39... Kg7 {[%clk 0:00:42.2]}
40. b4 {[%clk 0:00:48.4]} 40... d4 {[%clk 0:00:41.9]} 41. exd4 {[%clk
0:00:43.8]} 41... Re6 {[%clk 0:00:43.2]} 42. Bf3 {[%clk 0:00:40.5]} 42... Re1+
{[%clk 0:00:44.4]} 43. Kh2 {[%clk 0:00:41.4]} 43... Bc8 {[%clk 0:00:46.3]} 44.
b5 {[%clk 0:00:40.6]} 44... f5 {[%clk 0:00:47.7]} 45. b6 {[%clk 0:00:40.7]}
45... g4 {[%clk 0:00:49.2]} 46. b7 {[%clk 0:00:40.6]} 46... Bxb7 {[%clk
0:00:46.6]} 47. Bxb7 {[%clk 0:00:42.5]} 47... Rb1 {[%clk 0:00:47.8]} 48. c6
{[%clk 0:00:42.8]} 48... f4 {[%clk 0:00:49.2]} 49. hxg4 {[%clk 0:00:42.7]} 49...
Rb2 {[%clk 0:00:50.6]} 50. c7 {[%clk 0:00:41.5]} 1-0

[Event "*** Titled Tuesday 3|2 Blitz"]
[Site "Chess.com"]
[Date "2015.06.02"]
[Round "8"]
[White "MrHenriksson"]
[Black "Vandros57"]
[Result "1-0"]
[WhiteElo "2038"]
[BlackElo "1793"]
[TimeControl "180+2"]
[EndTime "12:42:41 PDT"]
[Termination "MrHenriksson won on time"]

1. d4 {[%clk 0:03:01.9]} 1... d5 {[%clk 0:02:59.3]} 2. Nf3 {[%clk 0:03:03.1]}
2... Nf6 {[%clk 0:02:58.2]} 3. g3 {[%clk 0:03:04]} 3... e6 {[%clk 0:02:55.6]} 4.
Bg2 {[%clk 0:03:05.5]} 4... c5 {[%clk 0:02:54.9]} 5. O-O {[%clk 0:03:06.8]} 5...
Nc6 {[%clk 0:02:53.9]} 6. c4 {[%clk 0:03:07]} 6... Be7 {[%clk 0:02:51.5]} 7.
dxc5 {[%clk 0:03:06.3]} 7... Bxc5 {[%clk 0:02:51.3]} 8. Nc3 {[%clk 0:03:02.9]}
8... O-O {[%clk 0:02:44.6]} 9. Bg5 {[%clk 0:03:00.5]} 9... h6 {[%clk 0:02:41.4]}
10. Bxf6 {[%clk 0:03:00.7]} 10... Qxf6 {[%clk 0:02:40.7]} 11. cxd5 {[%clk
0:03:01.8]} 11... exd5 {[%clk 0:02:36.2]} 12. Qxd5 {[%clk 0:03:02.3]} 12... Bb6
{[%clk 0:02:17.9]} 13. Qh5 {[%clk 0:02:50.6]} 13... Bf5 {[%clk 0:02:14.4]} 14.
Nd5 {[%clk 0:02:48.9]} 14... Qg6 {[%clk 0:02:07.5]} 15. Qxg6 {[%clk 0:02:41.3]}
15... Bxg6 {[%clk 0:02:02.8]} 16. Nxb6 {[%clk 0:02:40.9]} 16... axb6 {[%clk
0:02:02.6]} 17. Rfd1 {[%clk 0:02:40.7]} 17... Rfd8 {[%clk 0:02:01]} 18. a3
{[%clk 0:02:40.1]} 18... Bc2 {[%clk 0:01:54]} 19. Rdc1 {[%clk 0:02:40.4]} 19...
Bb3 {[%clk 0:01:49.9]} 20. e3 {[%clk 0:02:39]} 20... Rd6 {[%clk 0:01:47.1]} 21.
Rc3 {[%clk 0:02:26.6]} 21... Be6 {[%clk 0:01:44.7]} 22. h4 {[%clk 0:01:41.7]}
22... g6 {[%clk 0:01:42.9]} 23. Ne1 {[%clk 0:01:22.2]} 23... Rad8 {[%clk
0:01:38.2]} 24. Bf3 {[%clk 0:01:22.6]} 24... Rd2 {[%clk 0:01:31.5]} 25. b4
{[%clk 0:01:21.6]} 25... Bd5 {[%clk 0:01:16.7]} 26. Bxd5 {[%clk 0:01:19.4]}
26... R8xd5 {[%clk 0:01:15.9]} 27. Nf3 {[%clk 0:01:19.4]} 27... Rb2 {[%clk
0:01:11.8]} 28. Rac1 {[%clk 0:01:12.8]} 28... Kg7 {[%clk 0:01:10.8]} 29. Kg2
{[%clk 0:01:09.7]} 29... Kf6 {[%clk 0:01:09.1]} 30. R1c2 {[%clk 0:01:07.1]}
30... Rxc2 {[%clk 0:01:01.1]} 31. Rxc2 {[%clk 0:01:07]} 31... Rd3 {[%clk
0:00:56.2]} 32. b5 {[%clk 0:00:53.5]} 32... Na5 {[%clk 0:00:50.7]} 33. Rd2
{[%clk 0:00:48.1]} 33... Rxa3 {[%clk 0:00:47.2]} 34. Rd6+ {[%clk 0:00:47.8]}
34... Ke7 {[%clk 0:00:26]} 35. Rxb6 {[%clk 0:00:48.1]} 35... Ra2 {[%clk
0:00:18.6]} 36. h5 {[%clk 0:00:47.7]} 36... g5 {[%clk 0:00:14.3]} 37. Rxh6
{[%clk 0:00:47.2]} 37... Nc4 {[%clk 0:00:11.4]} 38. Nxg5 {[%clk 0:00:42.4]}
38... Nxe3+ {[%clk 0:00:10.5]} 39. Kf3 {[%clk 0:00:43.9]} 39... Nf5 {[%clk
0:00:10.1]} 40. Rh7 {[%clk 0:00:42.3]} 40... Nd4+ {[%clk 0:00:09.5]} 41. Kg2
{[%clk 0:00:41.7]} 41... Nxb5 {[%clk 0:00:08.4]} 42. Rxf7+ {[%clk 0:00:41.7]}
42... Ke8 {[%clk 0:00:09.4]} 43. h6 {[%clk 0:00:42.6]} 43... Nd6 {[%clk
0:00:09.9]} 44. h7 {[%clk 0:00:40.7]} 44... Nxf7 {[%clk 0:00:10.1]} 45. Nxf7
{[%clk 0:00:41.6]} 45... Kxf7 {[%clk 0:00:05.7]} 46. h8=Q {[%clk 0:00:42.4]}
46... Ra6 {[%clk 0:00:03.1]} 47. Qh7+ {[%clk 0:00:42.8]} 1-0

[Event "*** Titled Tuesday 3|2 Blitz"]
[Site "Chess.com"]
[Date "2015.06.02"]
[Round "8"]
[White "Recombinant"]
[Black "PowerThinking2650"]
[Result "1-0"]
[WhiteElo "2122"]
[BlackElo "2064"]
[TimeControl "180+2"]
[EndTime "12:42:53 PDT"]
[Termination "Recombinant won by resignation"]

1. d4 {[%clk 0:03:01.9]} 1... Nf6 {[%clk 0:03:00.8]} 2. c4 {[%clk 0:03:02.3]}
2... g6 {[%clk 0:03:02.3]} 3. Nc3 {[%clk 0:03:03.1]} 3... Bg7 {[%clk 0:03:03.9]}
4. Nf3 {[%clk 0:03:03.6]} 4... O-O {[%clk 0:03:05.1]} 5. Bg5 {[%clk 0:03:04.1]}
5... c5 {[%clk 0:03:00.9]} 6. d5 {[%clk 0:03:03.9]} 6... e6 {[%clk 0:02:58]} 7.
e3 {[%clk 0:02:59.8]} 7... Qa5 {[%clk 0:02:49.2]} 8. Nd2 {[%clk 0:02:59.3]} 8...
b5 {[%clk 0:02:34.9]} 9. dxe6 {[%clk 0:02:55.9]} 9... fxe6 {[%clk 0:02:27.6]}
10. cxb5 {[%clk 0:02:53.6]} 10... d5 {[%clk 0:02:24.2]} 11. e4 {[%clk
0:02:36.2]} 11... Bb7 {[%clk 0:02:13]} 12. Be2 {[%clk 0:02:17.7]} 12... Nbd7
{[%clk 0:01:58.3]} 13. O-O {[%clk 0:02:15.1]} 13... c4 {[%clk 0:01:52.7]} 14.
Bf3 {[%clk 0:02:05.7]} 14... Ne5 {[%clk 0:01:48.3]} 15. exd5 {[%clk 0:01:54.1]}
15... exd5 {[%clk 0:01:45.5]} 16. Kh1 {[%clk 0:01:14.5]} 16... Nd3 {[%clk
0:01:28.6]} 17. Bxf6 {[%clk 0:00:58.2]} 17... Bxf6 {[%clk 0:01:13.2]} 18. Nxd5
{[%clk 0:00:55]} 18... Qxb5 {[%clk 0:00:34.2]} 19. Nc7 {[%clk 0:00:30.7]} 19...
Bxf3 {[%clk 0:00:19]} 20. Qxf3 {[%clk 0:00:32.6]} 20... Qxb2 {[%clk 0:00:17.3]}
21. Nxc4 {[%clk 0:00:29.8]} 21... Qxa1 {[%clk 0:00:14.3]} 22. Rxa1 {[%clk
0:00:29.8]} 22... Nxf2+ {[%clk 0:00:11.7]} 23. Qxf2 {[%clk 0:00:15.6]} 23...
Bxa1 {[%clk 0:00:12]} 24. Qe2 {[%clk 0:00:13.8]} 24... Rad8 {[%clk 0:00:09.5]}
25. g3 {[%clk 0:00:11]} 25... Kh8 {[%clk 0:00:08.6]} 26. Qe1 {[%clk 0:00:08.2]}
26... Bg7 {[%clk 0:00:07.1]} 27. Kg2 {[%clk 0:00:08.2]} 27... Rd7 {[%clk
0:00:07.5]} 28. Nb5 {[%clk 0:00:07.1]} 28... Rd5 {[%clk 0:00:06.1]} 29. Ncd6
{[%clk 0:00:06.5]} 29... Rdf5 {[%clk 0:00:05.9]} 30. Nxf5 {[%clk 0:00:06.7]}
30... gxf5 {[%clk 0:00:07.3]} 31. Qe7 {[%clk 0:00:07.7]} 31... f4 {[%clk
0:00:08.1]} 32. gxf4 {[%clk 0:00:05.9]} 32... Rxf4 {[%clk 0:00:08.1]} 33. Qd8+
{[%clk 0:00:06.4]} 33... Rf8 {[%clk 0:00:09]} 34. Qd5 {[%clk 0:00:07.3]} 34...
a6 {[%clk 0:00:09.1]} 35. Nc7 {[%clk 0:00:08.3]} 35... Bf6 {[%clk 0:00:08.5]}
36. Ne6 {[%clk 0:00:08.7]} 36... Rg8+ {[%clk 0:00:08.8]} 37. Kf3 {[%clk
0:00:09.5]} 37... Re8 {[%clk 0:00:05.4]} 38. Qd7 {[%clk 0:00:10]} 38... Rg8
{[%clk 0:00:04.6]} 39. Qf7 {[%clk 0:00:10.2]} 39... Bc3 {[%clk 0:00:04.9]} 40.
h4 {[%clk 0:00:10.6]} 40... h6 {[%clk 0:00:04.7]} 41. Qh5 {[%clk 0:00:10.7]}
41... Kh7 {[%clk 0:00:04.6]} 42. Ng5+ {[%clk 0:00:12]} 42... Rxg5 {[%clk
0:00:03.7]} 43. hxg5 {[%clk 0:00:13]} 43... Bg7 {[%clk 0:00:04.4]} 44. g6+
{[%clk 0:00:13.8]} 44... Kg8 {[%clk 0:00:05.2]} 45. Qf5 {[%clk 0:00:15.7]} 45...
h5 {[%clk 0:00:05.3]} 46. Qf7+ {[%clk 0:00:16.7]} 1-0

[Event "*** Titled Tuesday 3|2 Blitz"]
[Site "Chess.com"]
[Date "2015.06.02"]
[Round "8"]
[White "goldaxe"]
[Black "only_defence"]
[Result "0-1"]
[WhiteElo "2144"]
[BlackElo "2186"]
[TimeControl "180+2"]
[EndTime "12:42:55 PDT"]
[Termination "only_defence won by resignation"]

1. e4 {[%clk 0:03:01.9]} 1... e6 {[%clk 0:02:59]} 2. d4 {[%clk 0:03:01.6]} 2...
d5 {[%clk 0:03:00.9]} 3. Nc3 {[%clk 0:03:02.8]} 3... Bb4 {[%clk 0:03:00.8]} 4.
e5 {[%clk 0:03:03.9]} 4... Qd7 {[%clk 0:03:01.4]} 5. Qg4 {[%clk 0:02:57]} 5...
f5 {[%clk 0:03:01.6]} 6. Qg3 {[%clk 0:02:53.3]} 6... b6 {[%clk 0:03:02.1]} 7.
Nh3 {[%clk 0:02:39.7]} 7... Ba6 {[%clk 0:03:01]} 8. Bxa6 {[%clk 0:02:38.8]} 8...
Nxa6 {[%clk 0:03:02.9]} 9. Nf4 {[%clk 0:02:39.1]} 9... O-O-O {[%clk 0:03:01.8]}
10. h4 {[%clk 0:02:19.4]} 10... g6 {[%clk 0:02:44.4]} 11. h5 {[%clk 0:02:17.5]}
11... Ne7 {[%clk 0:02:44.1]} 12. Bd2 {[%clk 0:02:00.3]} 12... Bxc3 {[%clk
0:02:41.3]} 13. Bxc3 {[%clk 0:01:58.7]} 13... Rdg8 {[%clk 0:02:33.8]} 14. hxg6
{[%clk 0:01:56.5]} 14... hxg6 {[%clk 0:02:34]} 15. O-O-O {[%clk 0:01:43.8]}
15... c5 {[%clk 0:02:20]} 16. Rxh8 {[%clk 0:01:33.2]} 16... Rxh8 {[%clk
0:02:19.2]} 17. Nxg6 {[%clk 0:01:34.8]} 17... Nxg6 {[%clk 0:02:18.6]} 18. Qxg6
{[%clk 0:01:34.4]} 18... Nc7 {[%clk 0:02:18.8]} 19. dxc5 {[%clk 0:01:28.6]}
19... bxc5 {[%clk 0:02:18.9]} 20. Ba5 {[%clk 0:01:26.1]} 20... Ne8 {[%clk
0:01:43.7]} 21. b3 {[%clk 0:01:11.5]} 21... Rh7 {[%clk 0:01:32.5]} 22. g3 {[%clk
0:00:59.3]} 22... Kb7 {[%clk 0:01:27.1]} 23. Kb2 {[%clk 0:00:55.5]} 23... Rg7
{[%clk 0:01:22.4]} 24. Qh5 {[%clk 0:00:55.4]} 24... Rh7 {[%clk 0:01:23.5]} 25.
Qe2 {[%clk 0:00:54.4]} 25... a6 {[%clk 0:01:22.3]} 26. c4 {[%clk 0:00:44.6]}
26... d4 {[%clk 0:01:20.6]} 27. Qf3+ {[%clk 0:00:30.1]} 27... Qc6 {[%clk
0:01:16.6]} 28. Qxc6+ {[%clk 0:00:24.9]} 28... Kxc6 {[%clk 0:01:18.5]} 29. a3
{[%clk 0:00:22.9]} 29... Rh2 {[%clk 0:01:19.1]} 30. Rd2 {[%clk 0:00:23.2]} 30...
Ng7 {[%clk 0:01:17.8]} 31. b4 {[%clk 0:00:23.5]} 31... Nh5 {[%clk 0:01:18.2]}
32. Kb3 {[%clk 0:00:17]} 32... Nxg3 {[%clk 0:01:15.2]} 33. b5+ {[%clk
0:00:18.1]} 33... axb5 {[%clk 0:01:15.4]} 34. fxg3 {[%clk 0:00:19.3]} 34... Rh3
{[%clk 0:01:10.2]} 35. Rd3 {[%clk 0:00:14.5]} 35... f4 {[%clk 0:01:06.7]} 36.
Be1 {[%clk 0:00:13.2]} 36... Rh1 {[%clk 0:01:02]} 37. Bf2 {[%clk 0:00:12.6]}
37... bxc4+ {[%clk 0:01:03.3]} 38. Kxc4 {[%clk 0:00:13.8]} 38... Rc1+ {[%clk
0:01:03.8]} 39. Kb3 {[%clk 0:00:15.1]} 39... c4+ {[%clk 0:00:59.9]} 40. Kb2
{[%clk 0:00:16.3]} 40... Rf1 {[%clk 0:01:01.3]} 41. Rxd4 {[%clk 0:00:07.4]}
41... Rxf2+ {[%clk 0:01:02.4]} 42. Kc3 {[%clk 0:00:08.5]} 42... fxg3 {[%clk
0:01:00.8]} 43. Rxc4+ {[%clk 0:00:08.5]} 43... Kd5 {[%clk 0:01:01.5]} 44. Rg4
{[%clk 0:00:09.3]} 44... g2 {[%clk 0:01:02.5]} 45. Rg5 {[%clk 0:00:10.5]} 45...
Ke4 {[%clk 0:00:59.3]} 46. a4 {[%clk 0:00:09.7]} 46... Kf4 {[%clk 0:01:00.6]}
47. Rg8 {[%clk 0:00:09.1]} 47... Rf3+ {[%clk 0:01:01.8]} 48. Kd4 {[%clk
0:00:07]} 48... Rg3 {[%clk 0:01:03.7]} 49. Rf8+ {[%clk 0:00:04.5]} 49... Kg4
{[%clk 0:01:04.3]} 50. Rg8+ {[%clk 0:00:05.7]} 50... Kf3 {[%clk 0:01:05.4]} 51.
Rf8+ {[%clk 0:00:05.7]} 51... Ke2 {[%clk 0:01:06]} 52. Rf1 {[%clk 0:00:03.1]}
52... gxf1=Q {[%clk 0:01:06.7]} 0-1

[Event "*** Titled Tuesday 3|2 Blitz"]
[Site "Chess.com"]
[Date "2015.06.02"]
[Round "8"]
[White "MattyDPerrine"]
[Black "Danirod"]
[Result "1-0"]
[WhiteElo "2259"]
[BlackElo "2386"]
[TimeControl "180+2"]
[EndTime "12:42:56 PDT"]
[Termination "MattyDPerrine won by resignation"]

1. d4 {[%clk 0:03:01.9]} 1... Nf6 {[%clk 0:03:00.7]} 2. Nf3 {[%clk 0:03:02.5]}
2... e6 {[%clk 0:03:01.2]} 3. c4 {[%clk 0:03:03.6]} 3... Bb4+ {[%clk 0:03:01.9]}
4. Nc3 {[%clk 0:03:05.1]} 4... c5 {[%clk 0:03:02.7]} 5. dxc5 {[%clk 0:03:04.1]}
5... Na6 {[%clk 0:03:03.4]} 6. Qc2 {[%clk 0:03:05.3]} 6... Nxc5 {[%clk
0:03:01.1]} 7. g3 {[%clk 0:03:06.5]} 7... b6 {[%clk 0:03:02]} 8. Bg2 {[%clk
0:03:07]} 8... Bb7 {[%clk 0:03:01.9]} 9. O-O {[%clk 0:03:08.1]} 9... Bxc3 {[%clk
0:02:58.8]} 10. Qxc3 {[%clk 0:03:09]} 10... Rc8 {[%clk 0:02:59.4]} 11. b3 {[%clk
0:03:07.6]} 11... O-O {[%clk 0:02:59.7]} 12. Bb2 {[%clk 0:03:08]} 12... Nce4
{[%clk 0:03:00.2]} 13. Qd4 {[%clk 0:02:52]} 13... d5 {[%clk 0:02:59.4]} 14. cxd5
{[%clk 0:02:48.4]} 14... Qxd5 {[%clk 0:03:00.1]} 15. Rac1 {[%clk 0:02:43.3]}
15... Rfd8 {[%clk 0:02:51]} 16. Qxd5 {[%clk 0:02:39.8]} 16... Bxd5 {[%clk
0:02:50.2]} 17. Rfd1 {[%clk 0:02:21.1]} 17... Kf8 {[%clk 0:02:44.9]} 18. Ne5
{[%clk 0:02:02.2]} 18... Ke8 {[%clk 0:02:42.5]} 19. f3 {[%clk 0:02:01.5]} 19...
Nc5 {[%clk 0:02:38.1]} 20. e4 {[%clk 0:01:59.1]} 20... Bb7 {[%clk 0:02:38.7]}
21. Bf1 {[%clk 0:01:57.4]} 21... Rxd1 {[%clk 0:02:34.3]} 22. Rxd1 {[%clk
0:01:54.8]} 22... Ke7 {[%clk 0:02:25.9]} 23. Ba3 {[%clk 0:01:47]} 23... g5
{[%clk 0:02:10.8]} 24. g4 {[%clk 0:01:15.8]} 24... Rc7 {[%clk 0:02:00.6]} 25.
Bc1 {[%clk 0:01:02]} 25... h6 {[%clk 0:02:01.5]} 26. h4 {[%clk 0:01:03]} 26...
Ne8 {[%clk 0:01:51.6]} 27. hxg5 {[%clk 0:00:43.6]} 27... hxg5 {[%clk 0:01:52.8]}
28. Bxg5+ {[%clk 0:00:42]} 28... f6 {[%clk 0:01:54]} 29. Bh4 {[%clk 0:00:43.6]}
29... Na6 {[%clk 0:01:29.9]} 30. Nc4 {[%clk 0:00:20.3]} 30... Nb4 {[%clk
0:01:28]} 31. a3 {[%clk 0:00:19.6]} 31... Nc6 {[%clk 0:01:26.2]} 32. Bg3 {[%clk
0:00:20.3]} 32... Rc8 {[%clk 0:01:24.3]} 33. Be2 {[%clk 0:00:15.4]} 33... e5
{[%clk 0:01:20.5]} 34. Bf2 {[%clk 0:00:16.7]} 34... b5 {[%clk 0:01:18.9]} 35.
Bc5+ {[%clk 0:00:14.7]} 35... Ke6 {[%clk 0:01:11.9]} 36. Nd6 {[%clk 0:00:13.6]}
36... Nxd6 {[%clk 0:01:08.1]} 37. Rxd6+ {[%clk 0:00:15.5]} 37... Kf7 {[%clk
0:01:09.7]} 38. Rd7+ {[%clk 0:00:15.5]} 38... Kg6 {[%clk 0:01:09.5]} 39. Rxb7
{[%clk 0:00:16.6]} 39... Nd4 {[%clk 0:01:11.2]} 40. Bxd4 {[%clk 0:00:16.9]}
40... exd4 {[%clk 0:01:13.1]} 41. Bd3 {[%clk 0:00:16.1]} 41... Rc3 {[%clk
0:01:14.2]} 42. Bxb5 {[%clk 0:00:15.5]} 42... Rxf3 {[%clk 0:01:13.2]} 43. Kg2
{[%clk 0:00:15.8]} 43... Rc3 {[%clk 0:01:12.5]} 44. Kf2 {[%clk 0:00:13.3]} 44...
Kg5 {[%clk 0:01:12.9]} 45. Rg7+ {[%clk 0:00:13.9]} 45... Kf4 {[%clk 0:01:14.1]}
46. Rf7 {[%clk 0:00:14]} 46... Rc2+ {[%clk 0:01:15.3]} 47. Kf1 {[%clk
0:00:12.8]} 47... Ke5 {[%clk 0:01:11.3]} 48. Bd3 {[%clk 0:00:12.6]} 48... Rc3
{[%clk 0:01:12.3]} 49. Ke2 {[%clk 0:00:14.2]} 49... Rxb3 {[%clk 0:01:13.7]} 50.
Rxa7 {[%clk 0:00:13.9]} 50... Rb2+ {[%clk 0:01:15]} 51. Kf3 {[%clk 0:00:15.5]}
51... Rb3 {[%clk 0:01:16.4]} 52. Ke2 {[%clk 0:00:17]} 52... Rb2+ {[%clk
0:01:17.8]} 53. Ke1 {[%clk 0:00:18.1]} 53... Rb3 {[%clk 0:01:18.2]} 54. Kd2
{[%clk 0:00:19.4]} 54... Rb2+ {[%clk 0:01:19.2]} 55. Bc2 {[%clk 0:00:20.8]}
55... Ra2 {[%clk 0:01:16]} 56. Ra5+ {[%clk 0:00:21.3]} 56... Kf4 {[%clk
0:01:15.6]} 57. Rf5+ {[%clk 0:00:22.2]} 57... Kxg4 {[%clk 0:01:16.5]} 58. Rxf6
{[%clk 0:00:24.1]} 58... Rxa3 {[%clk 0:01:17.2]} 59. Rd6 {[%clk 0:00:25.7]}
59... Kf4 {[%clk 0:01:15.2]} 60. Rxd4 {[%clk 0:00:26.5]} 60... Ke5 {[%clk
0:01:15]} 61. Rd5+ {[%clk 0:00:27.8]} 61... Ke6 {[%clk 0:01:16.3]} 62. Bd3
{[%clk 0:00:29.2]} 62... Ra1 {[%clk 0:01:17.3]} 63. Ke3 {[%clk 0:00:30.4]} 63...
Re1+ {[%clk 0:01:18.5]} 64. Kd4 {[%clk 0:00:30.6]} 64... Ra1 {[%clk 0:01:20.1]}
65. Re5+ {[%clk 0:00:30.6]} 65... Kd6 {[%clk 0:01:21.1]} 66. Rh5 {[%clk
0:00:31.6]} 66... Ra4+ {[%clk 0:01:21.7]} 67. Bc4 {[%clk 0:00:33.2]} 67... Ra1
{[%clk 0:01:22.9]} 68. Rh6+ {[%clk 0:00:34.6]} 68... Ke7 {[%clk 0:01:24.4]} 69.
Ke5 {[%clk 0:00:34.9]} 69... Ra5+ {[%clk 0:01:24.4]} 70. Bd5 {[%clk 0:00:36.4]}
70... Rb5 {[%clk 0:01:25.4]} 71. Rh7+ {[%clk 0:00:37.7]} 71... Kf8 {[%clk
0:01:26.4]} 72. Kf6 {[%clk 0:00:37.5]} 72... Rb6+ {[%clk 0:01:26.2]} 73. Be6
{[%clk 0:00:38.9]} 1-0

[Event "*** Titled Tuesday 3|2 Blitz"]
[Site "Chess.com"]
[Date "2015.06.02"]
[Round "8"]
[White "Daniel_Fridman"]
[Black "wonderfultime"]
[Result "1-0"]
[WhiteElo "2544"]
[BlackElo "2511"]
[TimeControl "180+2"]
[EndTime "12:42:57 PDT"]
[Termination "Daniel_Fridman won by resignation"]

1. Nf3 {[%clk 0:03:01.9]} 1... Nf6 {[%clk 0:03:00.8]} 2. c4 {[%clk 0:03:02.2]}
2... c6 {[%clk 0:03:01.6]} 3. g3 {[%clk 0:03:01.9]} 3... d5 {[%clk 0:02:53.5]}
4. Bg2 {[%clk 0:03:03.8]} 4... Bf5 {[%clk 0:02:53.3]} 5. cxd5 {[%clk 0:03:02]}
5... cxd5 {[%clk 0:02:53.9]} 6. Qb3 {[%clk 0:03:02.9]} 6... Qc8 {[%clk
0:02:39.8]} 7. Nc3 {[%clk 0:03:03.2]} 7... e6 {[%clk 0:02:39.2]} 8. O-O {[%clk
0:03:04]} 8... Nc6 {[%clk 0:02:39.9]} 9. d3 {[%clk 0:03:05.5]} 9... Be7 {[%clk
0:02:30.9]} 10. Bf4 {[%clk 0:03:05.9]} 10... O-O {[%clk 0:02:32]} 11. Rac1
{[%clk 0:03:06.3]} 11... Qd7 {[%clk 0:02:14.7]} 12. Nb5 {[%clk 0:03:06]} 12...
Rfc8 {[%clk 0:02:09.6]} 13. Nbd4 {[%clk 0:03:04.3]} 13... Nxd4 {[%clk
0:02:07.4]} 14. Nxd4 {[%clk 0:03:06.2]} 14... Bg6 {[%clk 0:02:08.5]} 15. Nf3
{[%clk 0:03:02.3]} 15... b6 {[%clk 0:02:02.5]} 16. Ne5 {[%clk 0:03:02.5]} 16...
Qe8 {[%clk 0:02:03.7]} 17. h3 {[%clk 0:02:53.8]} 17... Nd7 {[%clk 0:02:02.9]}
18. Nxg6 {[%clk 0:02:50.6]} 18... hxg6 {[%clk 0:02:03.7]} 19. d4 {[%clk
0:02:51.2]} 19... Nf6 {[%clk 0:02:01.5]} 20. Rfd1 {[%clk 0:02:49.7]} 20... Rxc1
{[%clk 0:01:59.4]} 21. Rxc1 {[%clk 0:02:50.8]} 21... Rc8 {[%clk 0:02:01.3]} 22.
Bf1 {[%clk 0:02:51.7]} 22... Ne4 {[%clk 0:01:50.8]} 23. Qd1 {[%clk 0:02:50.3]}
23... Bd6 {[%clk 0:01:42.3]} 24. Bxd6 {[%clk 0:02:43.4]} 24... Nxd6 {[%clk
0:01:44.2]} 25. e3 {[%clk 0:02:45.1]} 25... Rxc1 {[%clk 0:01:40.1]} 26. Qxc1
{[%clk 0:02:47]} 26... Qd7 {[%clk 0:01:41.7]} 27. Ba6 {[%clk 0:02:46.7]} 27...
Qa4 {[%clk 0:01:39.4]} 28. Bd3 {[%clk 0:02:35.3]} 28... Qxa2 {[%clk 0:00:55.5]}
29. Qc6 {[%clk 0:02:34.2]} 29... Qb3 {[%clk 0:00:19.7]} 30. Bxg6 {[%clk
0:02:32.7]} 30... fxg6 {[%clk 0:00:21.6]} 31. Qxd6 {[%clk 0:02:33.4]} 31... Kf7
{[%clk 0:00:21]} 32. Qd7+ {[%clk 0:02:28.6]} 32... Kf6 {[%clk 0:00:22.4]} 33.
Qe8 {[%clk 0:02:15]} 33... g5 {[%clk 0:00:21.7]} 34. Qf8+ {[%clk 0:02:16]} 34...
Kg6 {[%clk 0:00:22.8]} 35. Qe7 {[%clk 0:02:17.7]} 35... Kf5 {[%clk 0:00:18.8]}
36. Qxg7 {[%clk 0:02:01.4]} 36... Ke4 {[%clk 0:00:12.9]} 37. Qg6+ {[%clk
0:01:56.1]} 37... Kf3 {[%clk 0:00:13.8]} 38. Qh5+ {[%clk 0:01:45.4]} 38... Ke4
{[%clk 0:00:14.4]} 39. Kg2 {[%clk 0:01:47]} 39... Kd3 {[%clk 0:00:13.8]} 40.
Qxg5 {[%clk 0:01:46.8]} 40... Ke2 {[%clk 0:00:09.6]} 41. h4 {[%clk 0:01:40.2]}
41... Ke1 {[%clk 0:00:08.8]} 42. h5 {[%clk 0:01:32.6]} 42... Qxb2 {[%clk
0:00:09.5]} 43. Qf6 {[%clk 0:01:29.7]} 43... Qe2 {[%clk 0:00:07]} 44. h6 {[%clk
0:01:25.6]} 44... Qf1+ {[%clk 0:00:08.3]} 45. Kh2 {[%clk 0:01:26.8]} 45... Qe2
{[%clk 0:00:09.9]} 46. h7 {[%clk 0:01:25.2]} 46... Qh5+ {[%clk 0:00:09.2]} 47.
Qh4 {[%clk 0:01:25.7]} 47... Qf3 {[%clk 0:00:09.3]} 48. g4 {[%clk 0:01:25.1]}
1-0